bitfinex/quotes_ETHUSD_20240824
["timestamp","ask_amount","ask_price","bid_price","bid_amount"]
[1724506246839,7.23863,2763.0,2762.7,2.0]
[1724506247054,3.6193,2763.0,2762.7,2.0]
[1724506247242,7.23865,2763.0,2762.7,2.0]
[1724506247743,0.75640837,2763.5,2762.9,1.27197225]
[1724506248041,1.13630417,2763.8,2762.9,1.27197225]
[1724506248042,3.61847,2763.6,2763.1,1.27197225]
[1724506248226,3.61847,2763.6,2762.9,4.89131225]
[1724506248418,4.37487837,2763.6,2762.9,4.89131225]
[1724506248617,4.37487837,2763.6,2762.9,6.47499448]
[1724506249042,3.61847,2763.6,2763.0,3.61924]
[1724506249944,0.75640837,2763.7,2763.0,3.61924]
[1724506250145,0.75640837,2763.8,2763.4,3.61872]
[1724506250506,0.75640837,2763.8,2763.2,6.00681]
[1724506250852,0.75640837,2763.8,2763.2,6.969412]
[1724506251054,0.75640837,2763.8,2763.3,3.61885]
[1724506251456,0.75640837,2763.8,2763.4,3.61869]
[1724506251651,0.75640837,2763.9,2763.5,3.61857]
[1724506253127,0.75640837,2763.9,2763.6,3.61834]
[1724506253336,0.75640837,2763.9,2763.7,2.3879]
[1724506253539,0.75640837,2764.1,2763.8,3.61809]
[1724506253921,0.75640837,2764.2,2763.8,3.61809]
[1724506254375,0.75640837,2764.2,2764.0,3.61783]
[1724506254579,0.75640837,2764.3,2764.0,3.61783]
[1724506255865,0.75640837,2764.3,2764.0,7.23568]
[1724506256194,0.75640837,2764.3,2764.0,0.723568]
[1724506256472,1.51505379,2764.6,2764.4,3.61742]
[1724506256473,0.75640837,2764.6,2764.4,3.61742]
[1724506258409,0.75640837,2764.6,2764.2,7.23528]
[1724506258648,0.75640837,2764.5,2764.2,3.6176]
[1724506259003,0.75640837,2764.5,2764.3,3.61747]
[1724506261337,0.75640837,2764.5,2764.4,3.61742]
[1724506261636,0.75640837,2764.6,2764.5,3.61729]
[1724506262005,0.75640837,2764.7,2764.6,3.61715]
[1724506262201,0.75640837,2764.7,2764.6,9.6222]
[1724506262407,0.75640837,2764.9,2764.7,3.61702]
[1724506263542,0.75640837,2765.1,2764.7,3.61702]
[1724506263763,1.69067962,2765.0,2764.4,3.61733]
[1724506263970,1.69067962,2765.0,2764.3,2.4615]
[1724506263971,0.75640837,2764.8,2764.3,2.4615]
[1724506264252,0.75640837,2764.8,2764.4,3.6174]
[1724506266447,0.75640837,2764.9,2764.5,3.61725]
[1724506268308,0.75640837,2764.9,2764.4,3.6174]
[1724506268513,0.75640837,2764.9,2764.6,3.61706]
[1724506268754,0.75640837,2765.0,2764.7,3.61701]
[1724506269511,0.75640837,2765.1,2764.8,3.61688]
[1724506269615,7.45,2765.2,2765.0,3.61663]
[1724506269821,0.75640837,2765.3,2765.0,3.61663]
[1724506270240,0.55335283,2765.3,2765.0,3.61663]
[1724506270440,0.75640837,2765.4,2765.0,3.61663]
[1724506270655,0.0248358,2765.5,2765.2,3.61634]
[1724506275549,0.0248358,2765.5,2765.2,3.6163]
[1724506276741,2.4223,2765.4,2764.8,3.61682]
[1724506276945,0.60632158,2765.3,2764.8,7.2336]
[1724506277174,0.60632158,2765.3,2764.8,7.23361]
[1724506277353,4.22259158,2765.3,2764.7,3.617]
[1724506277568,4.22259158,2765.3,2764.6,3.61708]
[1724506277569,4.22259158,2765.3,2764.8,3.61685]
[1724506277772,0.66448916,2765.2,2764.8,3.61685]
[1724506277971,0.60632158,2765.3,2764.9,3.61674]
[1724506279036,0.60632158,2765.3,2764.7,3.61693]
[1724506279037,4.22259158,2765.3,2764.7,3.61693]
[1724506279265,4.22259158,2765.3,2764.7,7.23387]
[1724506279574,4.22259158,2765.3,2764.8,3.61685]
[1724506280670,4.12259158,2765.3,2764.8,3.61685]
[1724506281453,0.65448916,2765.2,2764.6,3.61713]
[1724506281772,4.27093916,2765.2,2764.6,3.61713]
[1724506281965,4.27093916,2765.2,2764.5,6.61721]
[1724506281966,3.61657,2765.1,2764.5,6.61721]
[1724506282204,2.4223,2765.0,2764.5,3.61721]
[1724506282531,2.4223,2765.0,2764.1,3.6177]
[1724506282532,3.61703,2764.7,2764.1,3.6177]
[1724506283056,7.23417,2764.7,2764.1,3.6177]
[1724506283267,7.23413,2764.7,2764.1,3.6177]
[1724506283486,3.61703,2764.7,2764.1,3.6177]
[1724506284060,3.61703,2764.7,2764.2,3.61768]
[1724506284382,4.12335158,2764.7,2764.2,3.61768]
[1724506285446,14.03914,2764.9,2764.3,3.61746]
[1724506285945,11.61678,2764.9,2764.3,9.72041]
[1724506286151,7.45,2764.9,2764.4,3.61734]
[1724506286351,11.06679,2764.9,2764.4,7.23468]
[1724506286683,7.45,2764.9,2764.4,7.23465]
[1724506287066,7.45,2764.9,2764.4,3.61731]
[1724506287272,8.61081074,2764.9,2764.4,3.61731]
[1724506287479,1.16081074,2764.9,2764.4,3.61731]
[1724506288276,1.91721911,2764.9,2764.4,3.61731]
[1724506288476,5.53397911,2764.9,2764.4,3.61731]
[1724506289891,0.75640837,2764.9,2764.4,6.09871]
[1724506290200,0.75640837,2765.0,2764.5,3.61721]
[1724506290351,5.87678,2765.1,2764.5,3.61721]
[1724506290352,6.63318837,2765.1,2764.5,3.61721]
[1724506290552,4.37306837,2765.0,2764.4,6.09871]
[1724506290755,4.37298837,2765.1,2764.6,3.61715]
[1724506292669,0.75640837,2765.0,2764.6,3.61715]
[1724506293307,0.75640837,2765.0,2764.6,3.61708]
[1724506293601,0.75640837,2764.9,2764.6,3.61707]
[1724506294104,0.75640837,2764.9,2764.6,7.23415]
[1724506294267,0.75640837,2764.9,2764.6,4.685788]
[1724506294469,0.75640837,2764.9,2764.8,6.09829]
[1724506294678,0.75640837,2764.9,2764.8,2.4814]
[1724506295469,0.75640837,2764.9,2764.7,3.617]
[1724506296319,0.75640837,2764.9,2764.7,7.23395]
[1724506296620,0.75640837,2764.9,2764.7,3.61695]
[1724506297491,0.75640837,2764.8,2764.7,3.61695]
[1724506299512,1.13630417,2764.9,2764.7,3.61695]
[1724506300091,0.75739299,2764.8,2764.7,3.61695]
[1724506300505,1.13630417,2764.9,2764.7,3.61695]
[1724506301038,0.75727322,2764.8,2764.7,3.61695]
[1724506301242,1.13630417,2764.9,2764.7,3.61695]
[1724506301541,1.13630417,2764.9,2764.8,3.61689]
[1724506302188,1.13630417,2764.9,2764.8,7.23378]
[1724506302392,1.13630417,2764.9,2764.8,9.71518]
[1724506302749,1.51505379,2765.0,2764.8,3.61689]
[1724506303245,1.51505379,2764.9,2764.6,6.09844]
[1724506303386,1.13751889,2764.7,2764.6,6.09844]
[1724506303586,0.75835045,2764.7,2764.6,6.09844]
[1724506303810,0.75832849,2764.7,2764.6,6.09844]
[1724506304398,1.13751889,2764.8,2764.6,9.7155]
[1724506305129,0.75835065,2764.7,2764.6,9.7155]
[1724506305331,0.75835065,2764.7,2764.6,10.68705]
[1724506306903,1.13751889,2764.9,2764.7,9.58374]
[1724506306904,0.75835065,2764.8,2764.7,9.58374]
[1724506309225,1.13751889,2764.9,2764.8,9.53398]
[1724506309226,0.75835065,2764.9,2764.8,9.53398]
[1724506309425,0.75835065,2764.9,2764.8,10.946245]
[1724506312332,0.75835065,2765.0,2764.9,7.23352]
[1724506312709,1.13751889,2765.1,2765.0,3.61663]
[1724506314410,1.13751889,2765.1,2765.0,7.23326]
[1724506314612,1.13751889,2765.2,2765.1,3.6165]
[1724506316523,1.13751889,2765.2,2765.1,4.339813]
[1724506316750,1.13751889,2765.2,2765.1,6.834213]
[1724506317815,1.13751889,2765.3,2765.1,6.834213]
[1724506318155,1.13751889,2765.2,2765.1,6.834213]
[1724506318325,1.13751889,2765.3,2765.1,6.834213]
[1724506318930,1.13751889,2765.3,2765.2,3.61637]
[1724506319236,1.13751889,2765.3,2765.2,8.2777983]
[1724506319610,1.13751889,2765.4,2765.3,3.61624]
[1724506320038,0.75800421,2765.4,2765.3,7.23248]
[1724506320243,0.75800421,2765.4,2765.3,9.72688]
[1724506323234,0.78284001,2765.5,2765.4,3.61611]
[1724506323541,0.78284001,2765.5,2765.4,8.30940083]
[1724506324055,0.0248358,2765.5,2765.4,8.30940083]
[1724506324434,0.0248358,2765.5,2765.4,10.79680083]
[1724506324630,0.0248358,2765.5,2765.4,13.79680083]
[1724506325129,0.0248358,2765.5,2765.4,10.18069083]
[1724506325325,0.0248358,2765.5,2765.4,6.61611]
[1724506326128,3.51375469,2765.5,2765.2,3.61632]
[1724506326373,0.75735955,2765.3,2765.0,6.61651]
[1724506326675,0.75735955,2765.2,2764.8,3.61683]
[1724506326846,0.75735955,2764.9,2764.5,3.6172]
[1724506327046,0.75735955,2764.9,2764.5,4.22766]
[1724506327559,0.75735955,2764.9,2764.6,3.61706]
[1724506327739,0.75735955,2764.9,2764.7,3.617]
[1724506328075,0.75735955,2764.9,2764.8,3.61689]
[1724506328239,0.75735955,2764.9,2764.8,7.23378]
[1724506328439,1.13751889,2765.1,2764.9,3.61676]
[1724506328440,0.75735955,2765.0,2764.9,3.61676]
[1724506328664,1.13751889,2765.1,2764.9,3.61676]
[1724506328665,0.75735955,2765.1,2764.9,3.61676]
[1724506328969,0.75735955,2765.0,2764.9,3.61676]
[1724506329373,0.75735955,2765.1,2765.0,3.61663]
[1724506329576,1.13751889,2765.2,2765.0,3.61663]
[1724506329735,1.51505379,2765.3,2764.8,6.02959]
[1724506329736,1.13751889,2765.1,2764.8,3.61689]
[1724506329940,0.75759553,2765.0,2764.8,3.61689]
[1724506330479,0.75759553,2764.9,2764.6,3.6171]
[1724506330633,0.75759553,2764.9,2764.7,3.0]
[1724506330839,0.75759553,2764.8,2764.7,3.0]
[1724506331362,0.75759553,2764.8,2764.6,3.6171]
[1724506332352,0.75759553,2764.7,2764.6,3.6171]
[1724506333163,0.75759553,2764.8,2764.6,3.6171]
[1724506333367,0.75759553,2764.7,2764.6,3.6171]
[1724506334781,0.75759553,2764.8,2764.7,3.61702]
[1724506335578,1.13751889,2764.8,2764.6,3.61708]
[1724506335777,0.75830628,2764.8,2764.7,3.61702]
[1724506335956,1.13751889,2764.8,2764.7,3.61702]
[1724506337376,1.13751889,2764.9,2764.8,3.61689]
[1724506337947,2.65257268,2765.0,2764.9,3.61676]
[1724506338289,1.51505379,2765.1,2764.9,3.61676]
[1724506339826,1.51505379,2765.0,2764.9,3.61676]
[1724506340157,1.1376158,2765.0,2764.9,3.61676]
[1724506340904,1.13765271,2765.0,2764.9,3.61676]
[1724506341110,1.51505379,2765.0,2764.7,3.61701]
[1724506341410,1.13773312,2764.8,2764.6,3.61707]
[1724506341770,0.75850782,2764.7,2764.6,3.61707]
[1724506342266,0.75850782,2764.8,2764.7,7.23404]
[1724506343316,0.75846011,2764.9,2764.7,3.0]
[1724506343457,0.75846011,2764.9,2764.6,7.053264]
[1724506343681,0.75846011,2764.9,2764.7,3.0]
[1724506343915,0.75846011,2764.9,2764.8,1.0053264]
[1724506344083,0.75846011,2765.0,2764.9,7.23352]
[1724506347086,0.75846011,2765.1,2765.0,7.23326]
[1724506347887,0.75846011,2765.2,2765.1,7.233]
[1724506348108,1.13773312,2765.3,2765.2,3.61637]
[1724506348739,1.13773312,2765.4,2765.3,3.61624]
[1724506350795,0.75835693,2765.4,2765.3,3.61624]
[1724506351175,1.16256892,2765.5,2765.4,3.61611]
[1724506352395,0.0248358,2765.5,2765.4,9.51402]
[1724506352520,0.783101,2765.5,2765.4,10.465422]
[1724506353229,0.0248358,2765.5,2765.4,10.465422]
[1724506353429,0.783101,2765.5,2765.4,10.465422]
[1724506353955,0.783101,2765.5,2765.4,14.081532]
[1724506353956,0.0248358,2765.5,2765.4,14.081532]
[1724506354186,0.0248358,2765.5,2765.4,17.081532]
[1724506362677,0.0248358,2765.5,2765.4,20.697642]
[1724506364550,0.0248358,2765.5,2765.4,21.96381232]
[1724506367259,0.0248358,2765.5,2765.4,17.081532]
[1724506367568,0.0248358,2765.5,2765.4,18.34770232]
[1724506368983,0.0248358,2765.5,2765.4,21.96381232]
[1724506373537,5.8e-06,2765.5,2765.4,25.57992232]
[1724506373753,5.8e-06,2765.5,2765.4,26.12992232]
[1724506377239,5.8e-06,2765.5,2765.4,26.27899289]
[1724506379356,2.2796,2766.6,2766.5,3.61467]
[1724506379562,2.2796,2766.8,2766.7,3.61441]
[1724506379924,2.2796,2766.8,2766.7,7.22882]
[1724506380121,2.2796,2766.8,2766.7,3.61441]
[1724506383520,2.2796,2766.8,2766.5,3.61459]
[1724506383953,2.69715983,2766.8,2766.4,3.61478]
[1724506384154,2.2941,2766.7,2766.4,3.61478]
[1724506384557,2.2941,2766.7,2766.5,3.61458]
[1724506384857,2.2941,2766.7,2766.6,3.61454]
[1724506387523,2.2941,2766.7,2766.4,7.22947]
[1724506387736,3.47137503,2766.7,2766.4,3.61469]
[1724506388541,3.47137503,2766.7,2766.4,7.22942]
[1724506388746,3.47137503,2766.7,2766.5,3.61466]
[1724506389342,3.0523652,2766.7,2766.6,3.61454]
[1724506392247,2.2941,2766.7,2766.6,3.61454]
[1724506393292,3.43183312,2766.7,2766.6,3.61454]
[1724506393896,2.2941,2766.7,2766.6,7.22908]
[1724506394393,3.43183312,2766.7,2766.6,7.22908]
[1724506394795,3.05119206,2766.7,2766.6,7.22908]
[1724506394964,3.43183312,2766.7,2766.6,7.22908]
[1724506395972,2.78878869,2766.7,2766.6,3.61454]
[1724506396169,4.30384248,2766.7,2766.6,3.61454]
[1724506396669,2.78878869,2766.7,2766.6,3.61454]
[1724506396868,2.2941,2766.7,2766.6,3.61454]
[1724506397408,3.80915379,2766.7,2766.6,3.61454]
[1724506401441,4.18986873,2766.7,2766.6,3.61454]
[1724506401736,2.2941,2766.7,2766.6,3.61454]
[1724506401929,4.18986873,2766.7,2766.6,3.61454]
[1724506403596,2.2941,2766.7,2766.6,3.61454]
[1724506403953,4.18986873,2766.7,2766.6,3.61454]
[1724506405535,1.89576873,2766.7,2766.6,3.61454]
[1724506406237,1.89654174,2766.7,2766.6,3.61454]
[1724506406439,1.89654174,2766.7,2766.6,7.22908]
[1724506406596,1.51729853,2766.7,2766.6,7.22908]
[1724506407894,1.89654174,2767.0,2766.8,3.61428]
[1724506408065,1.13788014,2766.9,2766.8,3.61428]
[1724506408268,1.13788014,2766.9,2766.8,10.22856]
[1724506408605,1.89654174,2767.1,2767.0,3.61402]
[1724506408606,1.51693575,2767.1,2767.0,3.61402]
[1724506408955,1.51693575,2767.1,2767.0,7.22804]
[1724506410388,1.51671142,2767.2,2767.1,3.61389]
[1724506411499,1.89587955,2767.3,2767.1,3.61389]
[1724506411699,1.51619378,2767.2,2767.1,3.61389]
[1724506412362,1.89587955,2767.3,2767.2,3.61376]
[1724506412563,1.89587955,2767.4,2767.2,3.61376]
[1724506413702,1.89587955,2767.4,2767.3,3.61363]
[1724506414200,1.89587955,2767.5,2767.3,3.61363]
[1724506414384,1.89587955,2767.4,2767.3,3.61363]
[1724506414588,1.89439627,2767.6,2767.4,3.6135]
[1724506414759,1.51544265,2767.5,2767.4,3.6135]
[1724506415098,1.89439627,2767.6,2767.4,3.6135]
[1724506415299,4.66534838,2767.8,2767.4,3.6135]
[1724506415501,1.13660151,2767.5,2767.4,3.6135]
[1724506417707,1.13660151,2767.6,2767.4,3.6135]
[1724506418103,1.13660151,2767.5,2767.4,3.6135]
[1724506418464,1.13660151,2767.6,2767.4,3.6135]
[1724506419215,1.13660151,2767.6,2767.4,3.61342]
[1724506419916,0.75697772,2767.5,2767.4,3.61342]
[1724506420241,0.75697772,2767.8,2767.6,3.61323]
[1724506420516,0.75697772,2767.8,2767.4,11.3016645]
[1724506420517,0.75697772,2767.7,2767.4,3.0]
[1724506420674,0.75678673,2767.5,2767.0,3.61393]
[1724506420869,0.75678673,2767.5,2766.8,9.7796]
[1724506420870,0.75678673,2767.3,2766.8,9.7796]
[1724506421107,0.75678673,2767.3,2767.2,8.49296136]
[1724506421308,1.89338824,2767.5,2767.3,3.61363]
[1724506421614,1.13660151,2767.5,2767.3,3.61363]
[1724506421816,0.75678673,2767.5,2767.3,3.61363]
[1724506421975,0.75678673,2767.5,2767.4,3.6135]
[1724506422577,1.13660151,2767.7,2767.4,3.6135]
[1724506422873,0.75661547,2767.6,2767.5,3.61336]
[1724506423078,0.75657916,2767.7,2767.6,3.61323]
[1724506423594,0.75657916,2767.8,2767.7,3.6131]
[1724506424521,1.13660151,2767.8,2767.7,3.6131]
[1724506424922,1.13660151,2767.8,2767.4,6.04699711]
[1724506424923,1.13660151,2767.8,2767.5,7.22655]
[1724506425089,0.75639959,2767.7,2767.5,7.22655]
[1724506425494,0.75639959,2767.7,2767.6,3.61323]
[1724506425700,0.75639959,2767.8,2767.6,3.61323]
[1724506426755,0.75639959,2767.8,2767.7,3.6131]
[1724506427288,0.75639959,2767.8,2767.5,7.2265]
[1724506427653,0.75639959,2767.8,2767.6,3.61323]
[1724506427654,0.75639959,2767.7,2767.6,3.61323]
[1724506428190,0.75639959,2767.8,2767.6,3.61323]
[1724506428387,0.75639959,2767.9,2767.6,3.61323]
[1724506428641,0.75639959,2767.9,2767.6,4.82160571]
[1724506428798,0.75639959,2767.8,2767.6,4.82160571]
[1724506429002,0.75639959,2767.9,2767.6,4.82160571]
[1724506429209,0.75639959,2767.9,2767.6,3.61323]
[1724506429210,0.75639959,2767.8,2767.6,3.61323]
[1724506429399,0.75639959,2767.8,2767.2,2.4237]
[1724506429628,0.75639959,2767.6,2767.1,3.61378]
[1724506429834,0.75639959,2767.4,2767.1,3.61378]
[1724506430476,0.75639959,2767.4,2767.2,3.61374]
[1724506430818,0.75639959,2767.4,2767.2,3.61369]
[1724506431118,0.75639959,2767.5,2767.2,3.975059]
[1724506431428,0.75639959,2767.4,2767.2,3.975059]
[1724506431877,0.75639959,2767.4,2767.2,7.588739]
[1724506432376,0.75639959,2767.4,2767.2,3.975049]
[1724506432686,0.75639959,2767.4,2767.3,3.61363]
[1724506432970,0.75639959,2767.4,2767.2,3.975049]
[1724506433374,0.75639959,2767.5,2767.2,3.975049]
[1724506433591,0.75639959,2767.5,2767.2,7.588739]
[1724506433889,0.75639959,2767.4,2767.2,3.975049]
[1724506434091,0.75639959,2767.5,2767.2,3.975049]
[1724506434231,0.75639959,2767.4,2767.2,7.588739]
[1724506434435,1.13660151,2767.6,2767.2,3.975049]
[1724506434436,0.75639959,2767.5,2767.2,3.975049]
[1724506434661,0.75639959,2767.4,2767.2,3.975049]
[1724506435453,0.75639959,2767.4,2767.2,0.361369]
[1724506435631,0.75639959,2767.3,2767.1,3.61388]
[1724506436662,0.75639959,2767.4,2767.2,3.61376]
[1724506437062,0.75639959,2767.4,2767.0,3.61389]
[1724506437259,0.75639959,2767.3,2767.0,3.61389]
[1724506437461,0.75639959,2767.3,2767.0,7.22784]
[1724506437663,0.75639959,2767.3,2767.1,3.61387]
[1724506437836,0.75639959,2767.4,2767.1,3.61387]
[1724506439255,0.75639959,2767.4,2767.2,3.61375]
[1724506440124,0.75639959,2767.4,2767.3,3.61363]
[1724506440258,0.75639959,2767.6,2767.4,3.61349]
[1724506440607,0.75639959,2767.6,2767.4,7.22698]
[1724506440765,1.13660151,2767.7,2767.4,7.22698]
[1724506440766,1.8930011,2767.7,2767.5,3.61336]
[1724506440975,0.75639959,2767.6,2767.5,3.61336]
[1724506443192,1.13660151,2767.7,2767.5,3.61336]
[1724506443488,0.75657859,2767.6,2767.5,3.61336]
[1724506445065,0.75657859,2767.6,2767.5,7.22672]
[1724506445398,0.75657859,2767.6,2767.5,7.949392]
[1724506445978,0.75657859,2767.7,2767.6,3.61323]
[1724506446644,1.13660151,2767.7,2767.6,3.61323]
[1724506447405,0.75687461,2767.7,2767.6,3.61323]
[1724506447607,1.32336099,2767.7,2767.6,4.78104534]
[1724506448018,0.75687461,2767.7,2767.6,4.78104534]
[1724506448701,1.13660151,2767.8,2767.6,4.78104534]
[1724506449087,0.75707727,2767.7,2767.6,4.78104534]
[1724506449326,1.13660151,2767.8,2767.6,4.78104534]
[1724506449496,1.13660151,2767.7,2767.6,4.78104534]
[1724506449697,1.13660151,2767.8,2767.6,4.78104534]
[1724506450236,1.13660151,2767.8,2767.7,4.77114673]
[1724506451581,1.51556219,2767.9,2767.7,4.77114673]
[1724506452324,1.51556219,2767.8,2767.6,3.61323]
[1724506452482,1.13632483,2767.7,2767.6,3.61323]
[1724506452795,3.61338,2767.5,2766.8,2.4672]
[1724506452998,0.75787582,2767.1,2767.0,7.44]
[1724506453215,1.13681373,2767.1,2767.0,11.05401]
[1724506454627,1.51575165,2767.3,2767.0,11.05401]
[1724506454628,1.13681373,2767.2,2767.1,3.61389]
[1724506454790,1.13681373,2767.2,2767.1,5.38068]
[1724506454791,1.51575165,2767.2,2767.1,5.38068]
[1724506455299,1.13718942,2767.2,2767.1,5.38068]
[1724506455908,1.51575165,2767.2,2767.1,5.38068]
[1724506456104,1.13728987,2767.2,2767.1,5.38068]
[1724506457504,1.13728987,2767.2,2767.1,11.34377]
[1724506457701,1.13728987,2767.3,2767.2,7.22752]
[1724506457927,1.13728987,2767.4,2767.3,7.22726]
[1724506458333,3.41114624,2767.5,2767.4,3.6135]
[1724506458533,1.89539459,2767.5,2767.4,3.6135]
[1724506460513,1.89539459,2767.6,2767.4,3.6135]
[1724506460717,1.89539459,2767.5,2767.4,3.6135]
[1724506460899,1.89539459,2767.6,2767.4,6.87764141]
[1724506461240,1.89574093,2767.6,2767.4,6.87764141]
[1724506462509,2.27488912,2767.8,2767.3,3.61363]
[1724506462510,1.89574093,2767.5,2767.3,3.61363]
[1724506462704,1.89574093,2767.4,2767.3,3.61363]
[1724506463039,1.89574093,2767.5,2767.2,7.88523414]
[1724506463240,1.13747174,2767.3,2767.2,7.88523414]
[1724506463441,1.13749261,2767.3,2767.2,7.88523414]
[1724506464009,1.13745275,2767.3,2767.2,7.88524414]
[1724506464409,1.51666355,2767.4,2767.2,7.88524414]
[1724506464609,1.51666355,2767.4,2767.3,0.45448153]
[1724506465245,1.51666355,2767.4,2767.3,4.06811153]
[1724506465845,1.1373997,2767.4,2767.3,4.06811153]
[1724506467313,1.51666355,2767.6,2767.3,4.06811153]
[1724506467314,1.51666355,2767.5,2767.3,4.06811153]
[1724506467513,1.13750633,2767.4,2767.3,4.06811153]
[1724506469152,1.13750633,2767.4,2767.3,0.45448153]
[1724506469320,1.13750633,2767.4,2767.3,4.06803153]
[1724506469321,1.51666355,2767.4,2767.3,4.06803153]
[1724506470042,1.51666355,2767.5,2767.3,4.06803153]
[1724506470236,1.51666355,2767.4,2767.3,4.06803153]
[1724506471438,1.51666355,2767.4,2767.2,3.61374]
[1724506471646,1.51666355,2767.3,2766.9,3.61406]
[1724506471845,1.13768252,2767.0,2766.9,3.61406]
[1724506474171,1.13768252,2767.1,2767.0,3.61402]
[1724506474329,1.13753892,2767.1,2767.0,3.61402]
[1724506474751,1.51691003,2767.2,2767.0,3.61402]
[1724506475258,1.13760573,2767.1,2767.0,3.61402]
[1724506475661,1.13754962,2767.1,2767.0,3.61402]
[1724506475990,1.13754962,2767.1,2766.9,3.61406]
[1724506476185,1.13758421,2767.0,2766.9,3.61406]
[1724506477587,1.13758421,2767.0,2766.9,3.59029958]
[1724506485415,1.13758421,2767.0,2766.9,7.20444958]
[1724506485879,1.13758421,2767.0,2766.9,9.51044958]
[1724506487995,1.13758421,2767.0,2766.9,7.20444958]
[1724506488196,1.13758421,2767.0,2766.9,3.59029958]
[1724506490116,1.51691003,2767.1,2766.7,4.87972136]
[1724506490305,0.75798416,2766.8,2766.7,4.87972136]
[1724506490504,0.75798416,2766.8,2766.7,7.87972136]
[1724506491907,0.75798416,2766.8,2766.7,6.61428]
[1724506493818,0.75798416,2766.8,2766.5,2.4711]
[1724506494023,0.75801144,2766.7,2766.4,11.05468]
[1724506494348,0.75801144,2766.6,2766.4,11.05468]
[1724506494909,0.75801144,2766.6,2766.5,3.6146]
[1724506495316,0.75805759,2766.6,2766.5,3.6146]
[1724506497411,1.13697117,2766.7,2766.5,3.6146]
[1724506498457,1.13697117,2766.6,2766.5,3.6146]
[1724506498606,0.75814371,2766.6,2766.5,3.6146]
[1724506498963,1.13697117,2766.7,2766.5,3.6146]
[1724506499367,0.75806848,2766.6,2766.5,3.6146]
[1724506500165,1.13697117,2766.7,2766.5,3.6146]
[1724506500477,0.75806309,2766.6,2766.5,3.6146]
[1724506502079,1.13697117,2766.7,2766.5,3.6146]
[1724506503330,0.75794872,2766.6,2766.5,3.6146]
[1724506504657,0.75794872,2766.6,2766.5,10.83431136]
[1724506504855,1.89491989,2766.7,2766.6,3.61454]
[1724506505059,0.75794872,2766.7,2766.6,3.61454]
[1724506506453,0.75794872,2766.7,2766.6,7.22908]
[1724506506859,0.75794872,2766.7,2766.6,9.56868]
[1724506507056,0.75794872,2766.8,2766.7,7.22882]
[1724506507257,0.75794872,2766.9,2766.8,3.61428]
[1724506507575,1.13697117,2767.0,2766.9,3.61415]
[1724506507869,1.13697117,2767.0,2766.9,4.87959136]
[1724506508060,1.13697117,2767.1,2766.9,7.21919136]
[1724506508455,0.75786679,2767.0,2766.9,7.21919136]
[1724506508857,1.13697117,2767.0,2766.9,7.21919136]
[1724506509086,1.13697117,2767.0,2766.9,5.95375]
[1724506509637,1.13697117,2767.0,2766.8,3.61427]
[1724506510045,1.13697117,2766.9,2766.8,3.61427]
[1724506510673,1.13697117,2767.0,2766.8,3.61427]
[1724506511083,1.13697117,2766.9,2766.8,3.61427]
[1724506512074,1.13697117,2767.0,2766.9,3.61415]
[1724506514254,1.51691003,2767.1,2766.9,3.61415]
[1724506515201,1.51691003,2767.0,2766.9,3.61415]
[1724506515749,1.51691003,2767.0,2766.7,7.15782136]
[1724506515989,1.13777116,2766.9,2766.8,3.61427]
[1724506517369,1.13777116,2766.9,2766.8,4.81065466]
[1724506519200,1.13777116,2766.9,2766.8,8.42493466]
[1724506527513,1.13777116,2766.9,2766.8,7.22855]
[1724506533614,1.13777116,2766.9,2766.8,3.61427]
[1724506535519,1.13777116,2766.9,2766.8,7.22855]
[1724506535830,1.13777116,2766.9,2766.8,9.69905]
[1724506538093,1.13777116,2766.9,2766.8,6.08477]
[1724506538319,1.13777116,2766.9,2766.8,3.61427]
[1724506540159,1.13777116,2766.9,2766.8,3.61428]
[1724506540332,1.51691003,2767.0,2766.7,8.49418136]
[1724506540627,1.13815127,2766.9,2766.7,4.87977136]
[1724506540827,1.13815127,2766.8,2766.7,4.87977136]
[1724506541040,1.13815127,2766.9,2766.7,4.87977136]
[1724506541343,1.13815127,2766.8,2766.7,4.87977136]
[1724506541504,1.13815127,2766.8,2766.5,6.61457]
[1724506541705,1.13828282,2766.6,2766.5,6.61457]
[1724506542426,1.13828282,2766.6,2766.3,3.61488]
[1724506542427,1.51691003,2766.6,2766.3,3.61488]
[1724506542735,1.13834553,2766.5,2766.4,3.0]
[1724506542905,2.20898568,2766.5,2766.1,3.61511]
[1724506543110,0.75891762,2766.3,2766.1,3.61509]
[1724506543507,0.75891762,2766.2,2766.1,3.61509]
[1724506543719,0.75891762,2766.2,2766.1,8.49572136]
[1724506544435,0.75891762,2766.3,2766.2,3.61506]
[1724506544738,0.75891762,2766.3,2766.2,6.61506]
[1724506554145,0.75891762,2766.3,2766.2,3.61506]
[1724506554339,1.13837644,2766.4,2766.3,3.61493]
[1724506560315,1.13837644,2766.5,2766.3,3.61493]
[1724506561753,1.13837644,2766.6,2766.5,3.61467]
[1724506562124,1.13837644,2766.7,2766.6,3.61454]
[1724506563532,1.13837644,2766.7,2766.5,3.61466]
[1724506564960,1.13837644,2766.7,2766.6,3.61454]
[1724506565363,1.13837644,2766.7,2766.5,3.61464]
[1724506566974,1.13837644,2766.7,2766.3,7.28215136]
[1724506567138,7.06249644,2766.7,2766.2,3.61497]
[1724506567460,3.44807644,2766.7,2766.3,3.6149]
[1724506568980,3.44807644,2766.7,2766.2,7.22996]
[1724506569456,1.13837644,2766.7,2766.2,3.61497]
[1724506569659,1.13837644,2766.7,2766.4,3.61478]
[1724506569833,3.61429,2766.8,2766.3,3.61492]
[1724506570765,3.61429,2766.8,2766.4,3.61478]
[1724506570956,5.92385,2766.9,2766.4,3.61478]
[1724506571159,2.3097,2766.9,2766.5,3.61462]
[1724506572965,5.92385,2766.9,2766.4,3.61479]
[1724506574460,3.61434,2766.8,2766.3,4.88037136]
[1724506574679,3.61434,2766.8,2766.3,3.61493]
[1724506579802,1.13724453,2766.4,2766.3,3.61493]
[1724506580006,1.13724453,2766.5,2766.3,3.61493]
[1724506580402,1.13724453,2766.4,2766.3,3.61493]
[1724506584629,1.51632604,2766.5,2766.3,3.61493]
[1724506585387,1.51632604,2766.4,2766.3,3.61493]
[1724506587609,1.89905899,2766.4,2766.3,3.61493]
[1724506590608,1.8992222,2766.4,2766.3,3.61493]
[1724506597307,3.61434,2766.8,2766.3,3.61493]